bitfinex/quotes_SOLUSD_20250630
["timestamp","ask_amount","ask_price","bid_price","bid_amount"]
[1751280777730,9.61952527,150.29,150.28,0.2]
[1751280788541,54.55349727,150.29,150.28,0.2]
[1751280790532,81.37349727,150.29,150.28,0.2]
[1751280798838,51.58777464,150.29,150.28,0.2]
[1751280799031,81.37349727,150.29,150.28,0.2]
[1751280803883,55.37349727,150.29,150.28,0.2]
[1751280810784,55.47349727,150.29,150.28,0.2]
[1751280813101,60.78759966,150.29,150.28,0.2]
[1751280813689,55.47349727,150.29,150.28,0.2]
[1751280817495,60.69845299,150.29,150.28,0.2]
[1751280821396,55.47349727,150.29,150.28,0.2]
[1751280825107,55.47349727,150.29,150.28,0.2]
[1751280826011,60.82834672,150.29,150.28,0.2]
[1751280828687,61.66007205,150.29,150.28,0.2]
[1751280829096,18.933972,150.28,150.27,0.2]
[1751280829301,21.89969463,150.28,150.27,0.2]
[1751280830499,28.55394003,150.28,150.27,0.2]
[1751280844119,25.5882174,150.28,150.27,0.2]
[1751280844426,28.55394003,150.28,150.27,0.2]
[1751280844831,25.30389426,150.28,150.27,0.2]
[1751280845030,6.75395801,150.29,150.27,0.2]
[1751280845218,0.1,150.29,150.28,2.96572263]
[1751280845428,0.1,150.29,150.27,4.82122263]
[1751280846619,0.1,150.29,150.28,2.96572263]
[1751280854047,0.1,150.29,150.27,4.82122263]
[1751280854518,6.7538338,150.29,150.27,1.8555]
[1751280854716,6.7538338,150.29,150.27,4.82122263]
[1751280857742,6.7538338,150.29,150.28,2.96572263]
[1751280858744,6.7538338,150.29,150.27,4.82122263]
[1751280859341,0.1,150.29,150.27,4.82122263]
[1751280860725,6.75383644,150.29,150.27,4.82122263]
[1751280861029,6.75383644,150.29,150.28,2.96572263]
[1751280863644,6.75383644,150.29,150.27,4.82122263]
[1751280868433,6.75383644,150.29,150.27,0.2]
[1751280869362,6.75383644,150.29,150.27,3.16572263]
[1751280869849,0.1,150.29,150.28,2.96572263]
[1751280870940,0.1,150.29,150.27,3.16572263]
[1751280872147,0.1,150.29,150.28,2.96572263]
[1751280875245,0.1,150.29,150.27,3.16572263]
[1751280876053,6.7538168,150.29,150.27,0.2]
[1751280876439,6.7538168,150.29,150.28,0.2]
[1751280886264,0.1,150.29,150.28,3.16572263]
[1751280886659,0.1,150.29,150.28,9.81996803]
[1751280887661,0.1,150.29,150.28,28.75394003]
[1751280888370,0.1,150.32,150.28,28.75394003]
[1751280888553,0.1,150.32,150.31,2.96572263]
[1751280890339,0.1,150.32,150.29,5.62]
[1751280890573,0.1,150.32,150.31,2.96572263]
[1751280895865,0.1,150.32,150.3,2.96572263]
[1751280896051,0.1,150.32,150.29,5.62]
[1751280896052,9.71819735,150.32,150.29,5.62]
[1751280897753,2.96572263,150.31,150.29,5.62]
[1751280898056,2.96572263,150.3,150.29,5.62]
[1751280898853,2.96572263,150.3,150.28,0.2]
[1751280899973,6.65380264,150.29,150.28,0.2]
[1751280902072,6.65354518,150.3,150.28,0.2]
[1751280903775,2.96572263,150.3,150.28,0.2]
[1751280904471,2.96572263,150.29,150.28,0.2]
[1751280905568,8.2065173,150.31,150.28,0.2]
[1751280905748,2.96572263,150.3,150.28,0.2]
[1751280905953,9.61933743,150.3,150.28,0.2]
[1751280907675,6.6536148,150.3,150.28,0.2]
[1751280907879,2.96572263,150.29,150.28,0.2]
[1751280908169,9.61952527,150.29,150.28,0.2]
[1751280910369,2.96572263,150.29,150.28,0.2]
[1751280910574,9.61926772,150.3,150.28,0.2]
[1751280915294,1.5536,150.31,150.28,0.2]
[1751280915589,3.06572263,150.32,150.28,3.16572263]
[1751280915782,6.65295557,150.31,150.28,0.2]
[1751280917101,2.96572263,150.3,150.28,0.2]
[1751280917474,9.61934024,150.3,150.28,0.2]
[1751280922408,6.6529173,150.31,150.28,0.2]
[1751280922598,2.96572263,150.3,150.28,0.2]
[1751280923600,2.96572263,150.29,150.28,0.2]
[1751280923800,35.61952527,150.29,150.28,0.2]
[1751280935049,32.65380264,150.29,150.28,0.2]
[1751280935342,35.61952527,150.29,150.28,0.2]
[1751280940525,6.65354809,150.3,150.28,0.2]
[1751280944266,9.61927072,150.3,150.28,0.2]
[1751280944554,2.96572263,150.29,150.28,0.2]
[1751280945421,9.61927072,150.3,150.28,0.2]
[1751280949160,6.65354809,150.3,150.28,0.2]
[1751280949363,9.61927072,150.3,150.28,0.2]
[1751280954764,6.6530699,150.31,150.28,3.16572263]
[1751280954969,6.6530699,150.31,150.29,2.96572263]
[1751280957073,6.6530699,150.31,150.28,3.16572263]
[1751280959172,2.96572263,150.29,150.28,0.2]
[1751280959678,2.96572263,150.3,150.28,0.2]
[1751280960057,9.61879253,150.31,150.28,0.2]
[1751280960373,6.75267572,150.32,150.28,3.16572263]
[1751280960555,6.75267572,150.32,150.29,2.96572263]
[1751280960952,6.75267572,150.32,150.28,6.85411171]
[1751280960953,0.1,150.32,150.3,2.96572263]
[1751280961153,0.1,150.32,150.3,6.653276]
[1751280961358,0.1,150.32,150.31,2.96572263]
[1751280962479,0.1,150.32,150.3,8.58572263]
[1751280963776,0.1,150.32,150.3,10.25392528]
[1751280965585,0.1,150.32,150.31,4.63392528]
[1751280973796,0.1,150.32,150.3,5.62]
[1751280973963,0.1,150.32,150.31,4.63392528]
[1751280977199,0.1,150.32,150.31,11.28684258]
[1751280989706,0.1,150.32,150.31,4.63392528]
[1751280989911,0.1,150.32,150.31,2.965297]
[1751280991819,0.1,150.32,150.31,4.63355849]
[1751281007647,0.1,150.32,150.31,11.28647579]
[1751281008747,0.1,150.32,150.31,4.63355849]
[1751281011752,0.1,150.32,150.31,9.61801364]
[1751281020649,0.1,150.32,150.31,6.6529173]
[1751281020826,0.1,150.32,150.31,9.61801364]
[1751281021153,0.1,150.32,150.31,2.96509634]
[1751281022852,0.1,150.32,150.31,9.61801364]
[1751281032164,0.1,150.32,150.31,21.478399]
[1751281037851,0.1,150.32,150.31,9.61801364]
[1751281041472,0.1,150.32,150.31,21.478399]
[1751281046472,0.1,150.32,150.31,9.61801364]
[1751281057484,0.1,150.34,150.31,9.61801364]
[1751281057671,0.1,150.34,150.33,2.96509634]
[1751281059990,0.1,150.34,150.33,9.61712853]
[1751281063664,0.1,150.34,150.33,2.96509634]
[1751281064272,0.1,150.34,150.32,2.96509634]
[1751281065080,0.1,150.34,150.33,2.96509634]
[1751281084717,0.1,150.34,150.32,6.65226017]
[1751281084895,0.1,150.34,150.33,2.96509634]
[1751281098709,0.1,150.34,150.31,6.65270513]
[1751281099027,0.1,150.34,150.33,2.96509634]
[1751281105100,0.1,150.34,150.31,6.65270513]
[1751281105305,0.1,150.34,150.33,2.96509634]
[1751281111512,0.1,150.34,150.33,9.61712853]
[1751281111828,0.1,150.34,150.33,2.96509634]
[1751281130952,0.1,150.34,150.32,5.62]
[1751281131129,0.1,150.34,150.32,8.58509634]
[1751281132350,0.1,150.34,150.33,2.96509634]
[1751281152755,6.75158972,150.34,150.32,5.62]
[1751281152959,6.75158972,150.34,150.29,38.2736485]
[1751281153159,6.75158972,150.34,150.31,2.96509634]
[1751281154253,0.1,150.34,150.31,2.96509634]
[1751281154453,0.1,150.34,150.33,2.96509634]
[1751281156168,0.1,150.34,150.3,6.65335994]
[1751281156468,0.1,150.34,150.32,2.96509634]
[1751281161170,0.1,150.34,150.32,9.61752688]
[1751281161464,0.1,150.34,150.33,2.96509634]
[1751281163848,0.1,150.34,150.32,2.96509634]
[1751281164450,0.1,150.34,150.31,6.65270429]
[1751281164666,0.1,150.34,150.32,2.96509634]
[1751281166567,0.1,150.34,150.32,9.61748858]
[1751281167172,0.1,150.34,150.33,2.96509634]
[1751281170882,0.1,150.34,150.33,9.61712853]
[1751281178284,0.1,150.34,150.33,2.96509634]
[1751281179477,0.1,150.34,150.33,9.61712853]
[1751281181191,0.1,150.34,150.33,6.65203219]
[1751281181498,0.1,150.34,150.33,9.61712853]
[1751281184879,0.1,150.34,150.32,2.96509634]
[1751281186099,0.1,150.34,150.33,2.96509634]
[1751281199303,3.06509634,150.34,150.31,5.82]
[1751281199599,9.71677919,150.34,150.31,5.82]
[1751281200190,0.1,150.34,150.31,8.78509634]
[1751281200507,6.75166019,150.34,150.32,2.96509634]
[1751281200684,6.75166019,150.34,150.31,5.82]
[1751281200893,9.71675653,150.34,150.31,5.82]
[1751281201195,6.75166019,150.34,150.31,5.82]
[1751281201579,0.1,150.34,150.32,2.96509634]
[1751281201802,6.7516387,150.34,150.31,5.82]
[1751281202002,9.71673504,150.34,150.31,5.82]
[1751281202300,2.96509634,150.33,150.31,5.82]
[1751281202796,9.71673504,150.34,150.31,5.82]
[1751281207514,6.7516387,150.34,150.31,5.82]
[1751281207701,9.71673504,150.34,150.31,5.82]
[1751281215311,9.61753036,150.33,150.31,5.82]
[1751281216918,9.61753036,150.33,150.31,0.2]
[1751281218003,6.65243402,150.33,150.31,0.2]
[1751281219221,9.61753036,150.33,150.31,0.2]
[1751281219419,2.96509634,150.32,150.31,0.2]
[1751281220512,75.01408776,150.32,150.31,0.2]
[1751281221418,44.64964886,150.29,150.28,0.2]
[1751281221594,48.73079367,150.29,150.28,0.2]
[1751281223096,55.38459631,150.29,150.28,0.2]
[1751281225122,82.18459631,150.29,150.28,0.2]
[1751281229424,83.73649631,150.29,150.28,0.2]
[1751281233329,53.97139997,150.29,150.28,0.2]
[1751281233520,55.82044784,150.29,150.28,0.2]
[1751281233717,56.10477098,150.29,150.28,0.2]
[1751281236332,53.13967464,150.29,150.28,0.2]
[1751281236737,6.65380264,150.29,150.28,0.2]
[1751281236917,6.65343586,150.3,150.28,3.16509634]
[1751281237637,6.65343586,150.3,150.28,0.2]
[1751281239829,6.65343586,150.3,150.28,0.2]
[1751281241925,11.28966672,150.3,150.28,0.2]
[1751281249343,6.65343586,150.3,150.28,0.2]
[1751281252250,6.65305189,150.31,150.29,4.63623086]
[1751281253254,6.65203219,150.33,150.29,4.63623086]
[1751281253649,11.28826305,150.33,150.29,4.63623086]
[1751281255522,4.63623086,150.32,150.28,0.2]
[1751281256626,6.6529173,150.31,150.28,0.2]
[1751281261032,9.61972802,150.31,150.28,0.2]
[1751281263278,42.7291371,150.34,150.28,0.2]
[1751281263279,42.21608467,150.33,150.28,0.2]
[1751281263456,2.96681072,150.31,150.28,0.2]
[1751281265162,6.65335994,150.3,150.28,0.2]
[1751281267154,6.65247472,150.32,150.28,0.2]
[1751281267354,2.96681072,150.31,150.28,0.2]
[1751281268439,9.62009757,150.31,150.28,0.2]
[1751281268958,2.96681072,150.3,150.28,0.2]
[1751281270655,9.62056466,150.3,150.28,0.2]
[1751281271158,2.96681072,150.29,150.28,0.2]
[1751281271453,21.90078272,150.29,150.28,0.2]
[1751281272649,28.55458536,150.29,150.28,0.2]
[1751281276873,82.18631069,150.29,150.28,0.2]
[1751281277961,78.38777464,150.29,150.28,0.2]
[1751281278171,81.35458536,150.29,150.28,0.2]
[1751281279571,78.38777464,150.29,150.28,0.2]
[1751281279772,81.35458536,150.29,150.28,0.2]
[1751281280775,54.55458536,150.29,150.28,0.2]
[1751281281753,56.22583802,150.29,150.28,0.2]
[1751281285806,51.58777464,150.29,150.28,0.2]
[1751281285959,56.22583802,150.29,150.28,0.2]
[1751281291963,51.58777464,150.29,150.28,0.2]
[1751281292169,56.22583802,150.29,150.28,0.2]
[1751281297297,30.22583802,150.29,150.28,0.2]
[1751281301791,177.12583802,150.29,150.28,0.2]
[1751281303798,175.45727959,150.29,150.28,0.2]
[1751281305990,202.25727959,150.29,150.28,0.2]
[1751281306805,199.28777464,150.29,150.28,0.2]
[1751281307002,202.25727959,150.29,150.28,0.2]
[1751281309415,225.0034515,150.29,150.28,0.2]
[1751281309714,201.45727959,150.29,150.28,0.2]
[1751281319021,177.05577959,150.29,150.28,0.2]
[1751281319219,182.03787614,150.29,150.28,0.2]
[1751281319420,35.13787614,150.29,150.28,0.2]
[1751281319721,35.96960147,150.29,150.28,0.2]
[1751281323715,30.98750492,150.29,150.28,0.2]
[1751281324719,28.01799997,150.29,150.28,0.2]
[1751281324921,35.96467772,150.29,150.28,0.2]
[1751281326609,30.98750492,150.29,150.28,0.2]
[1751281328328,35.96349894,150.29,150.28,0.2]
[1751281329320,30.98750492,150.29,150.28,0.2]
[1751281330528,35.96312322,150.29,150.28,0.2]
[1751281332110,30.98750492,150.29,150.28,0.2]
[1751281335231,35.96327128,150.29,150.28,0.2]
[1751281336436,32.99376633,150.29,150.28,0.2]
[1751281336620,35.96327128,150.29,150.28,0.2]
[1751281337538,29.38900492,150.29,150.28,0.2]
[1751281339734,34.36502244,150.29,150.28,0.2]
[1751281340415,29.38900492,150.29,150.28,0.2]
[1751281340623,34.36523857,150.29,150.28,0.2]
[1751281343535,18.933972,150.28,150.27,0.2]
[1751281343705,48.72347695,150.28,150.27,0.2]
[1751281344343,55.37772235,150.28,150.27,0.2]
[1751281347536,60.3522702,150.28,150.27,0.2]
[1751281348032,44.933972,150.23,150.21,0.2]
[1751281348338,74.70347695,150.23,150.21,0.2]
[1751281348536,18.64964886,150.17,150.16,0.2]
[1751281348834,47.90347695,150.17,150.16,0.2]
[1751281349412,51.59309166,150.17,150.16,0.2]
[1751281349632,54.56259661,150.17,150.16,0.2]
[1751281349835,56.23769558,150.17,150.16,0.2]
[1751281352617,6.65868243,150.18,150.16,0.2]
[1751281353827,25.30798618,150.19,150.16,0.2]
[1751281354029,25.30798618,150.19,150.16,4.84460392]
[1751281354234,25.30798618,150.19,150.16,0.2]
[1751281354445,146.9,150.21,150.18,4.64460392]
[1751281354656,6.65557404,150.25,150.2,4.64460392]
[1751281354943,6.65557404,150.25,150.18,6.5881]
[1751281354944,6.65557404,150.25,150.22,4.64460392]
[1751281355145,37.30017796,150.25,150.21,1.6055]
[1751281355327,23.57857592,150.24,150.21,1.6055]
[1751281355519,6.65646009,150.23,150.21,1.6055]
[1751281357837,6.65646009,150.23,150.19,4.64460392]
[1751281359536,6.65646009,150.23,150.18,6.5881]
[1751281359842,6.65646009,150.23,150.19,4.64460392]
[1751281360437,11.30106401,150.23,150.19,4.64460392]
[1751281361646,6.65646009,150.23,150.19,4.64460392]
[1751281364657,25.30667692,150.22,150.19,4.64460392]
[1751281366743,25.30667692,150.22,150.18,4.64460392]
[1751281366744,29.95128084,150.22,150.18,4.64460392]
[1751281370358,30.05128084,150.22,150.18,4.64460392]
[1751281374060,30.05128084,150.22,150.17,1.6473]
[1751281374264,25.30737725,150.21,150.17,4.64460392]
[1751281374562,25.30737725,150.21,150.16,12.53950986]
[1751281374563,6.65772839,150.21,150.18,4.64460392]
[1751281374748,6.65772839,150.21,150.17,4.64460392]
[1751281375459,6.65772839,150.21,150.16,12.53943327]
[1751281375763,6.65772839,150.21,150.17,4.64460392]
[1751281376660,6.65772839,150.21,150.16,12.53943327]
[1751281376870,6.65772839,150.21,150.17,4.64460392]
[1751281380967,6.65772839,150.21,150.18,4.64460392]
[1751281382560,6.65772839,150.21,150.17,4.64460392]
[1751281383268,6.65772839,150.21,150.18,4.64460392]
[1751281384570,0.1,150.22,150.18,4.64460392]
[1751281384748,6.75707894,150.22,150.19,4.64460392]
[1751281386266,6.75707894,150.22,150.18,4.64460392]
[1751281387080,11.40168286,150.22,150.16,12.53946175]
[1751281387359,11.40168286,150.22,150.18,4.84460392]
[1751281387566,11.40168286,150.22,150.18,0.2]
[1751281389970,9.72785335,150.22,150.18,0.2]
[1751281392270,6.75707894,150.22,150.18,0.2]
[1751281392460,6.75707894,150.22,150.18,3.17077441]
[1751281396069,9.72785335,150.22,150.18,3.17077441]
[1751281397462,9.72785335,150.22,150.18,0.2]
[1751281398445,9.6283958,150.21,150.18,0.2]
[1751281401679,2.97077441,150.19,150.18,0.2]
[1751281401976,21.62042327,150.19,150.18,0.2]
[1751281402568,28.27865617,150.19,150.18,0.2]
[1751281410974,25.30788176,150.19,150.18,0.2]
[1751281411171,28.27865617,150.19,150.18,0.2]
[1751281414383,25.30788176,150.19,150.18,0.2]
[1751281414684,28.27865617,150.19,150.18,0.2]
[1751281422795,28.37865617,150.19,150.18,0.2]
[1751281427198,28.66297931,150.19,150.18,0.2]
[1751281427390,56.19727931,150.19,150.18,0.2]
[1751281431002,30.19727931,150.19,150.18,0.2]
[1751281431208,18.64964886,150.17,150.16,0.2]
[1751281431384,86.66784405,150.17,150.16,0.2]
[1751281433004,93.32696371,150.17,150.16,0.2]
[1751281435809,83.97476287,150.17,150.13,0.2]
[1751281436104,47.90474641,150.14,150.13,0.2]
[1751281437703,44.933972,150.14,150.13,0.2]
[1751281437913,54.56519665,150.14,150.13,0.2]
[1751281442706,51.59442224,150.14,150.13,0.2]
[1751281443211,54.56519665,150.14,150.13,0.2]
[1751281458500,146.9,150.15,150.13,0.2]
[1751281458697,21.62042327,150.14,150.13,0.2]
[1751281459714,28.28087351,150.14,150.13,0.2]
[1751281462804,25.3100991,150.14,150.13,0.2]
[1751281463102,28.28087351,150.14,150.13,0.2]
[1751281464527,28.56519665,150.14,150.13,0.2]
[1751281475239,153.56012174,150.15,150.13,0.2]
[1751281475909,146.9,150.15,150.13,3.17077441]
[1751281476111,0.1,150.16,150.14,2.97077441]
[1751281478847,0.1,150.16,150.15,2.97077441]
[1751281479050,0.1,150.16,150.13,3.17077441]
[1751281479924,6.75959209,150.16,150.13,3.17077441]
[1751281480314,0.1,150.16,150.13,3.17077441]
[1751281482637,6.75958133,150.16,150.13,3.17077441]
[1751281483025,0.1,150.16,150.13,3.17077441]
[1751281483736,9.73050529,150.16,150.13,0.2]
[1751281489730,2.97077441,150.15,150.13,0.2]
[1751281491326,9.73050529,150.16,150.13,0.2]
[1751281494351,2.97077441,150.15,150.13,0.2]
[1751281494520,6.75973088,150.16,150.13,0.2]
[1751281494521,0.1,150.16,150.13,0.2]
[1751281494731,0.1,150.16,150.15,4.63107441]
[1751281494960,0.1,150.16,150.15,16.51417205]
[1751281495137,0.1,150.19,150.15,24.8207035]
[1751281495333,0.1,150.19,150.18,2.97077441]
[1751281496452,0.1,150.19,150.18,9.62945066]
[1751281499841,0.1,150.19,150.18,2.97077441]
[1751281500467,0.1,150.19,150.14,11.7521]
[1751281500634,2.97077441,150.17,150.15,30.0]
[1751281500958,2.97077441,150.17,150.14,5.62]
[1751281501129,2.97077441,150.18,150.14,5.62]
[1751281501725,4.74289604,150.19,150.15,4.64289604]
[1751281502161,0.1,150.19,150.15,4.64289604]
[1751281502855,0.1,150.19,150.16,4.64289604]
[1751281504162,0.1,150.19,150.15,4.64289604]
[1751281506265,11.40114943,150.19,150.14,12.28044245]
[1751281506435,11.40114943,150.19,150.15,4.64289604]
[1751281508774,11.40114943,150.19,150.14,5.62]
[1751281508940,4.64289604,150.16,150.14,5.62]
[1751281510943,11.30254,150.16,150.14,5.62]
[1751281513773,25.59264825,150.18,150.14,5.62]
[1751281514065,4.64289604,150.17,150.14,5.62]
[1751281514271,6.65867625,150.18,150.14,5.62]
[1751281514472,11.30157229,150.18,150.14,16.92331759]
[1751281515483,6.65867625,150.18,150.14,16.92331759]
[1751281516262,11.30157229,150.18,150.14,16.92331759]
[1751281516686,0.1,150.19,150.15,4.64289604]
[1751281517070,0.1,150.19,150.16,4.64289604]
[1751281517372,0.1,150.19,150.18,4.64289604]
[1751281518661,0.1,150.19,150.18,11.30157229]
[1751281520874,0.1,150.19,150.18,4.64289604]
[1751281522883,0.1,150.19,150.18,11.30157229]
[1751281523390,0.1,150.19,150.18,6.65867625]
[1751281523568,0.1,150.19,150.18,11.30157229]
[1751281523764,0.1,150.19,150.16,6.65956313]
[1751281524070,0.1,150.19,150.18,4.64289604]
[1751281524270,0.1,150.19,150.17,4.64289604]
[1751281524990,0.1,150.19,150.17,11.30172538]
[1751281525364,0.1,150.19,150.17,6.65882934]
[1751281526001,0.1,150.19,150.17,11.30172538]
[1751281526591,0.1,150.19,150.17,4.64289604]
[1751281526983,0.1,150.19,150.16,11.30226794]
[1751281531193,0.1,150.19,150.18,4.64289604]
[1751281532080,0.1,150.19,150.17,4.64289604]
[1751281533682,0.1,150.19,150.17,11.30197149]
[1751281534478,0.1,150.19,150.16,11.30224145]
[1751281534877,0.1,150.19,150.17,4.64289604]
[1751281536591,0.1,150.19,150.17,11.30197648]
[1751281536892,0.1,150.19,150.18,4.64289604]
[1751281540704,0.1,150.19,150.17,11.30197648]
[1751281541389,0.1,150.19,150.15,6.66000666]
[1751281541590,0.1,150.19,150.17,4.64289604]
[1751281543902,0.1,150.19,150.17,11.30194707]
[1751281547786,0.1,150.19,150.17,2.97041269]
[1751281550906,0.1,150.19,150.16,9.62983938]
[1751281551110,0.1,150.19,150.17,2.97041269]
[1751281556319,0.1,150.19,150.18,2.97041269]
[1751281559592,0.1,150.19,150.18,9.62908894]
[1751281561717,0.1,150.19,150.18,2.97041269]
[1751281563556,0.1,150.19,150.18,39.62908894]
[1751281563706,0.1,150.22,150.18,39.62908894]
[1751281563902,0.1,150.22,150.21,2.97041269]
[1751281565721,0.1,150.22,150.21,9.62775907]
[1751281567509,0.1,150.22,150.21,39.62775907]
[1751281572112,0.1,150.22,150.21,58.27740793]
[1751281572527,0.1,150.22,150.21,85.17740793]
[1751281572724,0.1,150.23,150.21,85.17740793]
[1751281572926,0.1,150.23,150.22,2.97041269]
[1751281576427,0.1,150.26,150.25,67.29127158]
[1751281585923,0.1,150.26,150.25,94.25127158]
[1751281588145,0.1,150.26,150.25,67.29127158]
[1751281592443,0.1,150.26,150.25,62.65557404]
[1751281592641,0.1,150.26,150.25,67.29127158]
[1751281602653,0.1,150.29,150.28,26.0]
[1751281602851,0.1,150.29,150.28,66.31569754]
[1751281604655,0.1,150.29,150.28,72.96994294]
[1751281610563,0.1,150.29,150.28,68.3342454]
[1751281610756,0.1,150.29,150.28,72.96994294]
[1751281611769,0.1,150.29,150.28,71.2999467]
[1751281612662,0.1,150.29,150.28,68.3342454]
[1751281612863,0.1,150.29,150.28,71.2999467]
[1751281621294,0.1,150.33,150.28,98.3199467]
[1751281621498,0.1,150.33,150.32,2.9657013]
[1751281622694,0.1,150.33,150.32,14.8285065]
[1751281623689,0.1,150.33,150.32,35.61817602]
[1751281624581,0.1,150.33,150.32,65.61817602]
[1751281625579,0.1,150.33,150.32,77.48098122]
[1751281626296,0.1,150.33,150.32,65.61817602]
[1751281626474,0.1,150.33,150.32,77.48098122]
[1751281626981,0.1,150.33,150.32,210.75063008]
[1751281629770,0.1,150.34,150.33,21.61535016]
[1751281629974,0.1,150.34,150.33,59.92188161]
[1751281630377,0.1,150.36,150.35,26.0]
[1751281630680,0.1,150.36,150.35,34.7457013]
[1751281630879,0.1,150.36,150.35,64.7457013]
[1751281631393,0.1,150.36,150.35,61.78]
[1751281631594,0.1,150.36,150.35,71.39684862]
[1751281637301,0.1,150.36,150.35,98.45684862]
[1751281637976,0.1,150.36,150.35,117.10649748]
[1751281640305,0.1,150.36,150.35,117.60649748]
[1751281642195,0.1,150.37,150.36,18.64964886]
[1751281642373,0.1,150.37,150.36,139.4996733]
[1751281642578,0.1,150.38,150.36,139.21535016]
[1751281642777,0.1,150.38,150.37,74.65535016]
[1751281643514,0.1,150.43,150.38,44.64964886]
[1751281643687,0.1,150.43,150.39,48.65535016]
[1751281644396,0.1,150.43,150.39,78.65535016]
[1751281644904,0.1,150.43,150.39,85.30472844]
[1751281645285,0.1,150.43,150.39,9.61507958]
[1751281645602,6.64831554,150.42,150.38,26.0]
[1751281645799,9.61403596,150.42,150.37,15.39558421]
[1751281646314,2.9657013,150.42,150.38,2.9657013]
[1751281646915,9.61379458,150.42,150.38,2.9657013]
[1751281647209,9.4425005,150.4,150.37,31.78]
[1751281647397,9.4425005,150.4,150.37,34.7457013]
[1751281647398,6.4767992,150.4,150.37,34.7457013]
[1751281647901,6.4767992,150.4,150.37,36.40962977]
[1751281648520,6.4767992,150.4,150.37,43.0598391]
[1751281649713,6.4767992,150.4,150.38,4.62962977]
[1751281650219,6.4767992,150.4,150.38,11.27939194]
[1751281650598,6.4767992,150.4,150.38,4.62962977]
[1751281651093,6.4767992,150.4,150.38,6.64978503]
[1751281651283,6.4767992,150.4,150.38,11.2794148]
[1751281655102,6.4767992,150.4,150.38,6.64978503]
[1751281655808,6.4767992,150.4,150.38,11.2794148]
[1751281656397,6.4767992,150.4,150.39,4.62962977]
[1751281657312,6.4767992,150.4,150.38,11.2794148]
[1751281660090,6.4767992,150.4,150.39,4.62962977]
[1751281660091,0.3840992,150.4,150.39,4.62962977]
[1751281660414,0.3840992,150.4,150.39,11.27900805]
[1751281665816,0.3840992,150.4,150.38,6.64982045]
[1751281666004,0.3840992,150.4,150.39,4.62962977]
[1751281667698,0.3840992,150.4,150.39,11.77900805]
[1751281670544,0.3840992,150.4,150.39,0.5]
[1751281670737,0.3840992,150.4,150.38,0.2]
[1751281672951,0.3840992,150.4,150.38,4.82962977]
[1751281674935,0.1874112,150.4,150.38,4.82962977]
[1751281679157,0.1874112,150.4,150.39,4.62962977]
[1751281680735,0.1874112,150.4,150.39,11.27900805]
[1751281683061,0.1874112,150.4,150.39,11.77900805]
[1751281684659,0.1874112,150.4,150.39,16.40863782]
[1751281684863,0.1874112,150.4,150.39,35.05828668]
[1751281685470,0.2874112,150.4,150.39,65.05828668]
[1751281689473,0.1,150.43,150.42,26.0]
[1751281689652,0.1,150.43,150.42,30.62962977]
[1751281690876,0.1,150.43,150.42,37.27768189]
[1751281691852,0.1,150.43,150.42,55.92733075]
[1751281692175,0.1,150.43,150.42,82.86733075]
[1751281692474,0.1,150.47,150.42,217.37178419]
[1751281692675,0.1,150.47,150.46,30.62962977]
[1751281692879,0.1,150.47,150.46,37.27591449]
[1751281697482,0.1,150.47,150.44,6.6471683]
[1751281697674,0.1,150.47,150.45,4.62962977]
[1751281697881,0.1,150.47,150.44,4.62962977]
[1751281698465,0.1,150.47,150.45,4.62962977]
[1751281700689,0.1,150.47,150.43,12.36743953]
[1751281700985,0.1,150.47,150.44,4.62962977]
[1751281701498,0.1,150.47,150.43,12.36743953]
[1751281701788,0.1,150.47,150.44,4.62962977]
[1751281702570,0.1,150.47,150.43,12.36743953]
[1751281702773,1.7629,150.47,150.44,4.62962977]